fUST/lending_fUST_20250622
["ID","MTS","AMOUNT","RATE_DAILY","PERIOD"]
[366886117,1750549855226,-544.531843,0.0002419,7]
[366886118,1750549855235,-1710.11,0.0002419,2]
[366886119,1750549855243,-463.03,0.0002419,2]
[366886120,1750549855251,-460.0,0.0002419,2]
[366886121,1750549855261,-460.0,0.0002419,2]
[366886122,1750549855270,-460.0,0.0002419,2]
[366886123,1750549855279,-460.0,0.00024191,2]
[366886124,1750549855288,-460.0,0.00024191,2]
[366886125,1750549855298,-460.0,0.00024191,2]
[366886126,1750549855307,-460.0,0.00024191,2]
[366886127,1750549855317,-200.0,0.00024191,2]
[366886128,1750549855326,-460.0,0.00024191,2]
[366886129,1750549855336,-433.92508167,0.00024191,2]
[366886130,1750549855348,-460.0,0.00024191,2]
[366886131,1750549855357,-500.0,0.00024191,2]
[366886132,1750549855370,-460.0,0.00024191,2]
[366886133,1750549855379,-460.0,0.00024191,2]
[366886134,1750549855389,-460.77053506,0.00024191,2]
[366886135,1750549855398,-460.0,0.00024191,2]
[366886136,1750549855408,-460.0,0.00024191,2]
[366886137,1750549855417,-460.0,0.00024191,2]
[366886138,1750549855427,-460.0,0.00024191,2]
[366886139,1750549855436,-460.0,0.00024191,2]
[366886140,1750549855445,-465.04608025,0.00024191,2]
[366886141,1750549855455,-275.0041682,0.00024191,2]
[366886142,1750549855464,-460.0,0.00024191,2]
[366886143,1750549855474,-460.0,0.00024191,2]
[366886144,1750549855483,-464.44615171,0.00024191,2]
[366886145,1750549855492,-460.0,0.00024191,2]
[366886146,1750549855501,-460.0,0.00024191,2]
[366886147,1750549855510,-460.79,0.00024191,2]
[366886148,1750549855520,-500.0,0.00024191,2]
[366886149,1750549855529,-460.0,0.00024191,2]
[366886150,1750549855539,-460.0,0.00024191,2]
[366886151,1750549855548,-460.0,0.00024191,2]
[366886152,1750549855557,-251.1977909,0.00024191,2]
[366886153,1750549855687,-298.0922091,0.00024191,2]
[366886154,1750549855698,-578.45405921,0.00024191,2]
[366886155,1750549855707,-444.90599264,0.00024191,2]
[366886156,1750549855715,-460.0,0.00024191,2]
[366886157,1750549855725,-460.0,0.00024191,2]
[366886158,1750549855734,-460.0,0.00024191,2]
[366886159,1750549855743,-407.9516865,0.00024191,2]
[366886160,1750549855752,-460.0,0.00024191,2]
[366886161,1750549855761,-460.0,0.00024191,2]
[366886162,1750549855771,-460.0,0.00024191,2]
[366886163,1750549855780,-460.0,0.00024191,2]
[366886164,1750549855790,-460.0,0.00024191,2]
[366886165,1750549855799,-365.04500709,0.00024191,2]
[366886166,1750549855808,-460.0,0.00024191,2]
[366886167,1750549855819,-402.16413326,0.00024191,2]
[366886168,1750549855828,-460.0,0.00024191,2]
[366886169,1750549855838,-460.0,0.00024191,2]
[366886170,1750549855848,-460.0,0.00024191,2]
[366886171,1750549855857,-313.91577373,0.00024191,2]
[366886172,1750549855945,-440.43125307,0.00024191,2]
[366886173,1750549855954,-405.95017054,0.00024191,2]
[366886174,1750549855964,-460.0,0.00024191,2]
[366886175,1750549855974,-460.0,0.00024191,2]
[366886176,1750549855983,-460.0,0.00024191,2]
[366886177,1750549855993,-400.0,0.00024191,2]
[366886178,1750549856003,-211.78102377,0.00024191,2]
[366886179,1750549856015,-248.21897623,0.00024191,2]
[366886180,1750549856023,-434.85778017,0.00024191,2]
[366886181,1750549856033,-210.42232648,0.00024191,2]
[366886182,1750549856042,-355.09252738,0.00024191,2]
[366886183,1750549856052,-440.0,0.00024191,2]
[366886184,1750549856062,-460.0,0.00024191,2]
[366886185,1750549856071,-118.4792228,0.00024191,2]
[366886186,1750549856082,-341.5207772,0.00024191,2]
[366886187,1750549856092,-151.0,0.000242,7]
[366886188,1750549856101,-2629.6668209,0.000242,10]
[366886189,1750549856187,-0.02779545,0.00021917,2]
[366886190,1750549856515,-500.0,0.00021906,2]
[366886191,1750549856525,-564.17728485,0.00021906,2]
[366886192,1750549856535,-564.17728485,0.00021906,2]
[366886193,1750549856545,-564.17728485,0.00021906,2]
[366886194,1750549856554,-564.17728485,0.00021906,2]
[366886195,1750549856564,-564.17728485,0.00021906,2]
[366886196,1750549856574,-564.17728485,0.00021906,2]
[366886197,1750549856587,-564.17728485,0.00021906,2]
[366886198,1750549856596,-549.85373493,0.00021906,2]
[366886199,1750549856667,-14.32354992,0.00021906,2]
[366886200,1750549856676,-502.63276392,0.00021906,2]
[366886201,1750549856688,-61.54452093,0.00021906,2]
[366886202,1750549856697,-564.17728485,0.00021906,2]
[366886203,1750549856707,-545.01,0.00021907,10]
[366886204,1750549856716,-241.45189082,0.00021917,2]
[366886207,1750549966884,299.821303,0.00013699,2]
[366886209,1750550037836,-160.58177857,0.00019391,2]
[366886210,1750550132911,150.5,0.000237,120]
[366886211,1750550133353,150.5,0.0002369,120]
[366886212,1750550133804,150.5,0.0002368,120]
[366886213,1750550160832,184.02298269,0.000222,69]
[366886214,1750550165822,184.02298268,0.000222,69]
[366886215,1750550224984,5000.0,0.00019102,2]
[366886216,1750550275223,200.0,0.00022191,30]
[366886217,1750550275497,200.0,0.00022465,30]
[366886218,1750550275799,271.55902274,0.00022739,30]
[366886219,1750550428283,5000.0,0.00019102,2]
[366886220,1750550469315,490.178395,0.000213,30]
[366886221,1750550493152,150.5,0.0002191,120]
[366886222,1750550493616,150.5,0.000219,120]
[366886223,1750550494072,150.5,0.0002189,120]
[366886224,1750550494522,150.5,0.0002464,120]
[366886225,1750550494985,177.16,0.0002463,120]
[366886226,1750550661133,220.82757925,0.000222,69]
[366886227,1750550666165,220.82757921,0.000222,69]
[366886228,1750550671154,220.82757921,0.00022382,70]
[366886229,1750550746111,-3178.63802473,0.00019387,2]
[366886230,1750550819601,5000.0,0.00019102,2]
[366886233,1750550954343,292.978786,0.00013699,2]
[366886237,1750551032494,-160.0,0.0001958,2]
[366886238,1750551032503,-150.0,0.000201,2]
[366886239,1750551032512,-292.978786,0.00020187,2]
[366886240,1750551032521,-160.0,0.00020201,10]
[366886241,1750551032531,-160.0,0.00020201,9]
[366886242,1750551032540,-160.0,0.00020201,8]
[366886243,1750551032549,-160.0,0.00020201,7]
[366886244,1750551032558,-160.0,0.00020201,6]
[366886245,1750551032567,-160.0,0.00020201,5]
[366886246,1750551032577,-160.0,0.00020201,4]
[366886247,1750551032586,-160.0,0.00020201,3]
[366886248,1750551032595,-307.89132392,0.00020201,5]
[366886249,1750551032604,-166.239334,0.00020572,2]
[366886250,1750551032614,-160.0,0.00021587,2]
[366886251,1750551032623,-300.0,0.00021814,2]
[366886252,1750551032632,-300.0,0.00021814,2]
[366886253,1750551032641,-300.0,0.00021814,2]
[366886254,1750551032650,-300.0,0.00021815,2]
[366886255,1750551032659,-669.3439102,0.00021815,2]
[366886256,1750551032668,-518.3121928,0.00021816,2]
[366886257,1750551032677,-500.0,0.00021816,2]
[366886258,1750551032686,-500.0,0.00021816,2]
[366886259,1750551032698,-500.0,0.00021816,2]
[366886260,1750551032707,-4588.11533389,0.00021817,2]
[366886261,1750551032741,-1860.10147444,0.00021817,2]
[366886262,1750551032750,-12366.69722295,0.00021817,2]
[366886263,1750551032759,-4339.26753443,0.00021882,2]
[366886310,1750551038390,-2108.94927389,0.00021882,2]
[366886311,1750551038400,-984.47,0.00021907,3]
[366886312,1750551038409,-1034.64,0.00021907,3]
[366886313,1750551038419,-517.32,0.00021907,3]
[366886314,1750551038429,-258.66,0.00021907,3]
[366886315,1750551038438,-775.98,0.00021907,3]
[366886316,1750551038448,-562.29,0.00021907,10]
[366886317,1750551038457,-500.0,0.00021913,2]
[366886318,1750551038467,-500.0,0.00021913,2]
[366886319,1750551038475,-500.0,0.00021913,2]
[366886320,1750551038485,-417.4831743,0.00021913,2]
[366886321,1750551038494,-252.69275607,0.00021913,2]
[366886322,1750551038503,-500.0,0.00021913,2]
[366886323,1750551038513,-500.0,0.00021913,2]
[366886324,1750551038523,-500.0,0.00021913,2]
[366886325,1750551038533,-500.0,0.00021913,2]
[366886326,1750551038543,-500.0,0.00021913,2]
[366886327,1750551038552,-500.0,0.00021913,2]
[366886328,1750551038562,-160.0,0.00021916,2]
[366886329,1750551038572,-500.0,0.00021916,7]
[366886330,1750551038585,-460.0,0.00021917,2]
[366886331,1750551038599,-460.0,0.00021917,2]
[366886332,1750551038609,-460.0,0.00021917,2]
[366886333,1750551038619,-460.0,0.00021917,2]
[366886334,1750551038629,-460.0,0.00021917,2]
[366886335,1750551038638,-541.60994964,0.00021917,2]
[366886336,1750551038648,-460.0,0.00021917,2]
[366886337,1750551038657,-449.90512391,0.00021917,2]
[366886338,1750551038667,-460.0,0.00021917,2]
[366886339,1750551038677,-460.0,0.00021917,2]
[366886340,1750551038687,-221.01477792,0.00021917,2]
[366886341,1750551038697,-233.91634502,0.00021917,2]
[366886342,1750551038707,-460.0,0.00021917,2]
[366886343,1750551038717,-317.17456677,0.00021917,2]
[366886344,1750551038730,-460.0,0.00021917,2]
[366886345,1750551038739,-460.0,0.00021917,2]
[366886346,1750551038749,-460.0,0.00021917,2]
[366886347,1750551038759,-406.0422759,0.00021917,2]
[366886348,1750551038769,-460.0,0.00021917,2]
[366886349,1750551038778,-460.0,0.00021917,2]
[366886350,1750551038788,-528.72138181,0.00021917,2]
[366886351,1750551038798,-460.0,0.00021917,2]
[366886352,1750551038807,-460.0,0.00021917,2]
[366886353,1750551038817,-379.92568837,0.00021917,2]
[366886354,1750551038826,-460.0,0.00021917,2]
[366886355,1750551038838,-553.9948652,0.00021917,2]
[366886356,1750551038847,-460.0,0.00021917,2]
[366886357,1750551038857,-423.39565073,0.00021917,2]
[366886358,1750551038866,-460.0,0.00021917,2]
[366886359,1750551038876,-460.0,0.00021917,2]
[366886360,1750551038885,-460.0,0.00021917,2]
[366886361,1750551038895,-460.0,0.00021917,2]
[366886362,1750551038905,-470.22106702,0.00021917,2]
[366886363,1750551038920,-460.0,0.00021917,2]
[366886364,1750551038929,-500.0,0.00021917,2]
[366886365,1750551038939,-509.22927698,0.00021917,2]
[366886366,1750551038947,-460.0,0.00021917,2]
[366886367,1750551038957,-385.06845608,0.00021917,2]
[366886368,1750551038967,-460.0,0.00021917,2]
[366886369,1750551038977,-460.0,0.00021917,2]
[366886370,1750551038987,-460.0,0.00021917,2]
[366886371,1750551038996,-460.0,0.00021917,2]
[366886372,1750551039006,-400.0,0.00021917,2]
[366886373,1750551039016,-400.59629711,0.00021917,2]
[366886374,1750551039025,-460.0,0.00021917,2]
[366886375,1750551039036,-460.0,0.00021917,2]
[366886376,1750551039051,-460.0,0.00021917,2]
[366886377,1750551039061,-410.0,0.00021917,2]
[366886378,1750551039071,-432.7145104,0.00021917,2]
[366886379,1750551039084,-422.76280062,0.00021917,2]
[366886380,1750551039093,-460.0,0.00021917,2]
[366886381,1750551039104,-430.0,0.00021917,2]
[366886382,1750551039115,-462.10012513,0.00021917,2]
[366886383,1750551039125,-460.0,0.00021917,2]
[366886384,1750551039136,-370.71691079,0.00021917,2]
[366886385,1750551039145,-403.99512149,0.00021917,2]
[366886386,1750551039155,-460.0,0.00021917,2]
[366886387,1750551039166,-460.0,0.00021917,2]
[366886388,1750551039176,-430.0,0.00021917,2]
[366886389,1750551039186,-460.0,0.00021917,2]
[366886390,1750551039196,-460.0,0.00021917,2]
[366886391,1750551039205,-475.90325592,0.00021917,2]
[366886392,1750551039216,-460.0,0.00021917,2]
[366886393,1750551039225,-460.0,0.00021917,2]
[366886394,1750551039234,-460.0,0.00021917,2]
[366886395,1750551039244,-341.78845594,0.00021917,2]
[366886396,1750551039255,-433.7936882,0.00021917,2]
[366886397,1750551039265,-200.0,0.00021917,2]
[366886398,1750551039274,-461.15025127,0.00021917,2]
[366886399,1750551039284,-380.0,0.00021917,2]
[366886400,1750551039293,-151.0,0.00021917,2]
[366886401,1750551039303,-151.53850816,0.00021917,2]
[366886402,1750551039313,-460.0,0.00021917,2]
[366886403,1750551039323,-460.0,0.00021917,2]
[366886404,1750551039335,-460.0,0.00021917,2]
[366886405,1750551039345,-484.26602455,0.00021917,2]
[366886406,1750551039359,-435.30857183,0.00021917,2]
[366886407,1750551039369,-427.66326142,0.00021917,2]
[366886408,1750551039379,-460.0,0.00021917,2]
[366886409,1750551039388,-460.0,0.00021917,2]
[366886410,1750551039398,-460.0,0.00021917,2]
[366886411,1750551039408,-480.0,0.00021917,2]
[366886412,1750551039418,-460.0,0.00021917,2]
[366886413,1750551039428,-460.0,0.00021917,2]
[366886414,1750551039438,-544.01851863,0.00021917,2]
[366886415,1750551039447,-430.0,0.00021917,2]
[366886416,1750551039457,-460.0,0.00021917,2]
[366886417,1750551039467,-460.0,0.00021917,2]
[366886418,1750551039477,-460.0,0.00021917,2]
[366886419,1750551039487,-460.0,0.00021917,2]
[366886420,1750551039497,-344.73148972,0.00021917,2]
[366886421,1750551039507,-460.0,0.00021917,2]
[366886422,1750551039516,-460.0,0.00021917,2]
[366886423,1750551039525,-460.0,0.00021917,2]
[366886424,1750551039535,-460.0,0.00021917,2]
[366886425,1750551039546,-460.0,0.00021917,2]
[366886426,1750551039555,-460.0,0.00021917,2]
[366886427,1750551039565,-460.0,0.00021917,2]
[366886428,1750551039575,-460.0,0.00021917,2]
[366886429,1750551039586,-395.48947004,0.00021917,2]
[366886430,1750551039596,-151.0,0.00021917,2]
[366886431,1750551039606,-153.01897109,0.00021917,2]
[366886432,1750551039616,-152.52321084,0.00021917,2]
[366886433,1750551039625,-151.0,0.00021917,2]
[366886434,1750551039635,-151.0,0.00021917,2]
[366886435,1750551039645,-460.0,0.00021917,2]
[366886436,1750551039655,-151.0,0.00021917,2]
[366886437,1750551039664,-422.43844753,0.00021917,2]
[366886438,1750551039675,-151.0,0.00021917,2]
[366886439,1750551039684,-460.0,0.00021917,2]
[366886440,1750551039694,-460.0,0.00021917,2]
[366886441,1750551039704,-495.52,0.00021917,2]
[366886442,1750551039714,-460.0,0.00021917,2]
[366886443,1750551039724,-460.0,0.00021917,2]
[366886444,1750551039733,-460.0,0.00021917,2]
[366886445,1750551039743,-460.0,0.00021917,2]
[366886446,1750551039752,-467.21260559,0.00021917,2]
[366886447,1750551039762,-460.0,0.00021917,2]
[366886448,1750551039772,-465.51797769,0.00021917,2]
[366886449,1750551039781,-460.0,0.00021917,2]
[366886450,1750551039791,-460.0,0.00021917,2]
[366886451,1750551039801,-460.0,0.00021917,2]
[366886452,1750551039811,-460.0,0.00021917,2]
[366886453,1750551039820,-460.0,0.00021917,2]
[366886454,1750551039832,-460.0,0.00021917,2]
[366886455,1750551039842,-460.0,0.00021917,2]
[366886456,1750551039851,-460.0,0.00021917,2]
[366886457,1750551039861,-460.0,0.00021917,2]
[366886458,1750551039871,-460.0,0.00021917,2]
[366886459,1750551039881,-460.0,0.00021917,2]
[366886460,1750551039891,-460.0,0.00021917,2]
[366886461,1750551039901,-189.71,0.00021917,2]
[366886462,1750551039912,-220.93,0.00021917,2]
[366886464,1750551039922,-460.0,0.00021917,2]
[366886465,1750551039932,-429.08723942,0.00021917,2]
[366886466,1750551039941,-400.0,0.00021917,2]
[366886467,1750551039952,-440.0,0.00021917,2]
[366886468,1750551039962,-460.0,0.00021917,2]
[366886469,1750551039972,-460.0,0.00021917,2]
[366886470,1750551039982,-460.0,0.00021917,2]
[366886471,1750551039991,-460.0,0.00021917,2]
[366886472,1750551040001,-460.0,0.00021917,2]
[366886473,1750551040011,-151.0,0.00021917,2]
[366886474,1750551040020,-460.0,0.00021917,2]
[366886476,1750551040121,-427.28920224,0.00021917,2]
[366886477,1750551040131,-434.64301203,0.00021917,2]
[366886478,1750551040141,-460.0,0.00021917,2]
[366886479,1750551040150,-460.0,0.00021917,2]
[366886480,1750551040160,-460.0,0.00021917,2]
[366886481,1750551040170,-420.0,0.00021917,2]
[366886482,1750551040180,-460.0,0.00021917,2]
[366886483,1750551040190,-460.0,0.00021917,2]
[366886484,1750551040200,-460.0,0.00021917,2]
[366886485,1750551040210,-460.0,0.00021917,2]
[366886486,1750551040219,-460.0,0.00021917,2]
[366886487,1750551040229,-460.0,0.00021917,2]
[366886488,1750551040238,-460.0,0.00021917,2]
[366886489,1750551040248,-460.0,0.00021917,2]
[366886490,1750551040258,-460.0,0.00021917,2]
[366886491,1750551040268,-390.83680144,0.00021917,2]
[366886492,1750551040278,-460.0,0.00021917,2]
[366886493,1750551040287,-460.0,0.00021917,2]
[366886494,1750551040297,-460.0,0.00021917,2]
[366886495,1750551040309,-214.95574998,0.00021917,2]
[366886496,1750551040319,-460.0,0.00021917,2]
[366886497,1750551040329,-470.90437963,0.00021917,2]
[366886498,1750551040340,-500.0,0.00021917,2]
[366886499,1750551040350,-466.51986027,0.00021917,2]
[366886500,1750551040361,-160.07829289,0.00021917,2]
[366886501,1750551040371,-151.0,0.00021917,2]
[366886502,1750551040380,-440.1425519,0.00021917,2]
[366886503,1750551040390,-460.0,0.00021917,2]
[366886504,1750551040400,-151.0,0.00021917,2]
[366886505,1750551040410,-151.0,0.00021917,2]
[366886506,1750551040419,-460.0,0.00021917,2]
[366886507,1750551040429,-460.0,0.00021917,2]
[366886508,1750551040439,-460.0,0.00021917,2]
[366886509,1750551040448,-460.0,0.00021917,2]
[366886510,1750551040457,-460.0,0.00021917,2]
[366886511,1750551040467,-151.0,0.00021917,2]
[366886512,1750551040476,-602.14874199,0.00021917,2]
[366886513,1750551040487,-436.021116,0.00021917,2]
[366886514,1750551040496,-460.0,0.00021917,2]
[366886516,1750551040506,-434.51849022,0.00021917,2]
[366886518,1750551040516,-408.62465476,0.00021917,2]
[366886519,1750551040526,-460.0,0.00021917,2]
[366886521,1750551040536,-460.0,0.00021917,2]
[366886523,1750551040546,-460.0,0.00021917,2]
[366886525,1750551040557,-460.0,0.00021917,2]
[366886527,1750551040567,-460.0,0.00021917,2]
[366886529,1750551040576,-395.60899255,0.00021917,2]
[366886531,1750551040588,-388.53166402,0.00021917,2]
[366886532,1750551040597,-460.0,0.00021917,2]
[366886534,1750551040606,-463.16230889,0.00021917,2]
[366886536,1750551040616,-437.32885911,0.00021917,2]
[366886537,1750551040626,-468.21345676,0.00021917,2]
[366886538,1750551040635,-427.64045941,0.00021917,2]
[366886539,1750551040645,-460.0,0.00021917,2]
[366886540,1750551040654,-460.0,0.00021917,2]
[366886541,1750551040664,-460.0,0.00021917,2]
[366886542,1750551040674,-446.29272819,0.00021917,2]
[366886543,1750551040683,-460.0,0.00021917,2]
[366886544,1750551040693,-460.0,0.00021917,2]
[366886545,1750551040703,-460.0,0.00021917,2]
[366886546,1750551040712,-460.0,0.00021917,2]
[366886547,1750551040722,-461.08245331,0.00021917,2]
[366886548,1750551040731,-500.0,0.00021917,2]
[366886549,1750551040742,-500.0,0.00021917,2]
[366886550,1750551040751,-435.9063231,0.00021917,2]
[366886551,1750551040761,-500.0,0.00021917,2]
[366886552,1750551040772,-500.0,0.00021917,2]
[366886553,1750551040781,-500.0,0.00021917,2]
[366886554,1750551040791,-547.59217303,0.00021917,2]
[366886555,1750551040801,-460.0,0.00021917,2]
[366886556,1750551040810,-460.0,0.00021917,2]
[366886557,1750551040820,-151.74884919,0.00021917,2]
[366886558,1750551040833,-460.0,0.00021917,2]
[366886559,1750551040843,-460.0,0.00021917,2]
[366886560,1750551040852,-356.4441216,0.00021917,2]
[366886561,1750551040861,-500.0,0.00021917,2]
[366886562,1750551040870,-433.92508167,0.00021917,2]
[366886563,1750551040880,-460.0,0.00021917,2]
[366886564,1750551040890,-460.0,0.00021917,2]
[366886565,1750551040899,-460.0,0.00021917,2]
[366886566,1750551040909,-597.14,0.00021917,2]
[366886567,1750551040920,-460.77053506,0.00021917,2]
[366886568,1750551040930,-460.0,0.00021917,2]
[366886569,1750551040939,-460.0,0.00021917,2]
[366886570,1750551040949,-460.0,0.00021917,2]
[366886571,1750551040958,-460.0,0.00021917,2]
[366886572,1750551040969,-466.80194782,0.00021917,2]
[366886573,1750551040979,-500.0,0.00021917,2]
[366886574,1750551040991,-500.0,0.00021917,2]
[366886575,1750551041001,-258.13447406,0.00021917,2]
[366886576,1750551041010,-460.0,0.00021917,2]
[366886577,1750551041020,-460.0,0.00021917,2]
[366886578,1750551041030,-460.0,0.00021917,2]
[366886579,1750551041039,-460.0,0.00021917,2]
[366886580,1750551041049,-460.0,0.00021917,2]
[366886581,1750551041058,-460.0,0.00021917,2]
[366886582,1750551041068,-460.0,0.00021917,2]
[366886583,1750551041078,-210.02883917,0.00021917,2]
[366886584,1750551041091,-460.0,0.00021917,2]
[366886585,1750551041101,-460.0,0.00021917,2]
[366886586,1750551041111,-460.0,0.00021917,2]
[366886587,1750551041120,-460.0,0.00021917,2]
[366886588,1750551041130,-460.0,0.00021917,2]
[366886589,1750551041140,-460.0,0.00021917,2]
[366886590,1750551041150,-460.0,0.00021917,2]
[366886591,1750551041159,-487.08390594,0.00021917,2]
[366886592,1750551041169,-460.0,0.00021917,2]
[366886593,1750551041179,-442.78334714,0.00021917,2]
[366886594,1750551041189,-157.6414337,0.00021917,2]
[366886595,1750551041199,-434.28814655,0.00021917,2]
[366886596,1750551041209,-460.0,0.00021917,2]
[366886597,1750551041219,-460.0,0.00021917,2]
[366886598,1750551041229,-460.0,0.00021917,2]
[366886599,1750551041239,-525.6824942,0.00021917,2]
[366886600,1750551041248,-519.00092518,0.00021917,2]
[366886601,1750551041258,-460.0,0.00021917,2]
[366886602,1750551041268,-460.0,0.00021917,2]
[366886603,1750551041278,-460.0,0.00021917,2]
[366886604,1750551041288,-268.29050484,0.00021917,2]
[366886605,1750551041298,-460.0,0.00021917,2]
[366886606,1750551041308,-460.0,0.00021917,2]
[366886607,1750551041318,-460.0,0.00021917,2]
[366886608,1750551041328,-460.0,0.00021917,2]
[366886609,1750551041345,-460.0,0.00021917,2]
[366886610,1750551041356,-460.0,0.00021917,2]
[366886611,1750551041365,-460.0,0.00021917,2]
[366886612,1750551041375,-460.0,0.00021917,2]
[366886613,1750551041385,-422.42695916,0.00021917,2]
[366886614,1750551041394,-345.38310664,0.00021917,2]
[366886615,1750551041404,-460.0,0.00021917,2]
[366886616,1750551041414,-460.0,0.00021917,2]
[366886617,1750551041425,-460.0,0.00021917,2]
[366886618,1750551041434,-1318.09,0.00021917,2]
[366886619,1750551041444,-460.0,0.00021917,2]
[366886620,1750551041454,-1318.09,0.00021917,2]
[366886621,1750551041463,-460.0,0.00021917,2]
[366886622,1750551041473,-1318.09,0.00021917,2]
[366886623,1750551041482,-460.0,0.00021917,2]
[366886624,1750551041492,-1318.09,0.00021917,2]
[366886625,1750551041501,-1318.09,0.00021917,2]
[366886626,1750551041511,-1318.09,0.00021917,2]
[366886627,1750551041521,-1318.09,0.00021917,2]
[366886628,1750551041531,-460.0,0.00021917,2]
[366886629,1750551041540,-460.0,0.00021917,2]
[366886630,1750551041550,-1318.09,0.00021917,2]
[366886631,1750551041560,-460.0,0.00021917,2]
[366886632,1750551041570,-156.65031373,0.00021917,2]
[366886633,1750551041580,-1318.09,0.00021917,2]
[366886634,1750551041593,-460.0,0.00021917,2]
[366886635,1750551041602,-1318.09,0.00021917,2]
[366886636,1750551041612,-460.0,0.00021917,2]
[366886637,1750551041621,-1318.09,0.00021917,2]
[366886638,1750551041631,-476.27139643,0.00021917,2]
[366886639,1750551041641,-1318.09,0.00021917,2]
[366886640,1750551041651,-1318.09,0.00021917,2]
[366886641,1750551041661,-430.0,0.00021917,2]
[366886642,1750551041670,-460.0,0.00021917,2]
[366886643,1750551041680,-1318.09,0.00021917,2]
[366886644,1750551041690,-500.0,0.00021917,2]
[366886645,1750551041699,-460.0,0.00021917,2]
[366886646,1750551041709,-1318.09,0.00021917,2]
[366886647,1750551041719,-500.0,0.00021917,2]
[366886648,1750551041728,-460.0,0.00021917,2]
[366886649,1750551041738,-500.0,0.00021917,2]
[366886650,1750551041748,-500.0,0.00021917,2]
[366886651,1750551041757,-596.58,0.00021917,2]
[366886652,1750551041767,-596.58,0.00021917,2]
[366886653,1750551041778,-596.58,0.00021917,2]
[366886654,1750551041787,-596.58,0.00021917,2]
[366886655,1750551041797,-421.78297709,0.00021917,2]
[366886656,1750551041807,-500.0,0.00021917,2]
[366886657,1750551041817,-500.0,0.00021917,2]
[366886658,1750551041827,-500.0,0.00021917,2]
[366886659,1750551041841,-1318.09,0.00021917,2]
[366886660,1750551041928,-500.0,0.00021917,2]
[366886661,1750551041939,-500.0,0.00021917,2]
[366886662,1750551041949,-500.0,0.00021917,2]
[366886663,1750551041960,-460.0,0.00021917,2]
[366886664,1750551041969,-460.0,0.00021917,2]
[366886665,1750551041981,-596.58,0.00021917,2]
[366886666,1750551041991,-460.0,0.00021917,2]
[366886667,1750551042001,-596.58,0.00021917,2]
[366886668,1750551042011,-596.58,0.00021917,2]
[366886669,1750551042020,-596.58,0.00021917,2]
[366886670,1750551042030,-460.0,0.00021917,2]
[366886671,1750551042040,-596.58,0.00021917,2]
[366886672,1750551042050,-460.0,0.00021917,2]
[366886673,1750551042060,-596.58,0.00021917,2]
[366886674,1750551042070,-460.0,0.00021917,2]
[366886675,1750551042080,-596.58,0.00021917,2]
[366886676,1750551042093,-460.0,0.00021917,2]
[366886677,1750551042103,-468.71770552,0.00021917,2]
[366886678,1750551042113,-460.0,0.00021917,2]
[366886679,1750551042123,-460.0,0.00021917,2]
[366886680,1750551042132,-460.0,0.00021917,2]
[366886681,1750551042142,-460.0,0.00021917,2]
[366886682,1750551042153,-460.0,0.00021917,2]